fUSD/lending_fUSD_20250708
["ID","MTS","AMOUNT","RATE_DAILY","PERIOD"]
[370352695,1751976654930,-460.0,0.00024849,2]
[370352696,1751976654940,-460.0,0.00024849,2]
[370352697,1751976654950,-460.0,0.00024849,2]
[370352698,1751976654959,-460.0,0.00024849,2]
[370352699,1751976654968,-460.0,0.00024849,2]
[370352700,1751976654978,-600.64,0.00024849,2]
[370352701,1751976654990,-938.54,0.00024849,2]
[370352702,1751976654999,-1653.97,0.00024849,2]
[370352703,1751976655009,-729.41,0.00024849,2]
[370352704,1751976655018,-460.0,0.00024849,2]
[370352705,1751976655027,-460.0,0.00024849,2]
[370352706,1751976655037,-460.0,0.00024849,2]
[370352707,1751976655045,-576.81,0.00024849,2]
[370352708,1751976655055,-901.76,0.00024849,2]
[370352709,1751976655064,-537.05,0.00024849,2]
[370352710,1751976655073,-1764.18,0.00024849,2]
[370352711,1751976655082,-306.93,0.00024849,2]
[370352712,1751976655092,-150.0,0.00024849,4]
[370352713,1751976655101,-500.0,0.00024858,2]
[370352714,1751976655110,-460.0,0.00024859,2]
[370352715,1751976655121,-520.0,0.00024859,2]
[370352716,1751976655131,-460.0,0.00024859,2]
[370352717,1751976655140,-460.0,0.00024859,2]
[370352718,1751976655150,-460.0,0.00024859,2]
[370352719,1751976655159,-460.0,0.00024859,2]
[370352720,1751976655169,-460.0,0.00024859,2]
[370352721,1751976655178,-495.28976751,0.00024859,2]
[370352722,1751976655187,-460.0,0.00024859,2]
[370352723,1751976655197,-520.69517101,0.00024859,2]
[370352724,1751976655207,-460.0,0.00024859,2]
[370352725,1751976655216,-460.0,0.00024859,2]
[370352726,1751976655225,-460.0,0.00024859,2]
[370352727,1751976655235,-496.04334097,0.00024859,2]
[370352728,1751976655246,-460.0,0.00024859,2]
[370352729,1751976655256,-460.0,0.00024859,2]
[370352730,1751976655266,-460.0,0.00024859,2]
[370352731,1751976655276,-493.67154764,0.00024859,2]
[370352732,1751976655286,-527.36848207,0.00024859,2]
[370352733,1751976655296,-460.0,0.00024859,2]
[370352734,1751976655305,-460.0,0.00024859,2]
[370352735,1751976655315,-189.77494565,0.00024859,2]
[370352736,1751976655325,-460.0,0.00024859,2]
[370352737,1751976655335,-460.0,0.00024859,2]
[370352738,1751976655345,-439.34228137,0.00024859,2]
[370352739,1751976655355,-460.0,0.00024859,2]
[370352740,1751976655364,-460.0,0.00024859,2]
[370352741,1751976655375,-542.6490544,0.00024859,2]
[370352742,1751976655385,-561.52217887,0.00024859,2]
[370352743,1751976655394,-544.33061291,0.00024859,2]
[370352744,1751976655404,-560.05045181,0.00024859,2]
[370352745,1751976655413,-460.0,0.00024859,2]
[370352746,1751976655423,-460.0,0.00024859,2]
[370352747,1751976655432,-571.15032153,0.00024859,2]
[370352748,1751976655442,-460.0,0.00024859,2]
[370352749,1751976655451,-460.0,0.00024859,2]
[370352750,1751976655461,-500.0,0.00024859,2]
[370352751,1751976655470,-500.0,0.00024859,2]
[370352752,1751976655479,-460.0,0.00024859,2]
[370352753,1751976655489,-460.0,0.00024859,2]
[370352754,1751976655498,-408.25618747,0.00024859,2]
[370352755,1751976655508,-460.0,0.00024859,2]
[370352756,1751976655517,-460.0,0.00024859,2]
[370352757,1751976655527,-460.0,0.00024859,2]
[370352758,1751976655535,-460.0,0.00024859,2]
[370352759,1751976655545,-460.0,0.00024859,2]
[370352760,1751976655555,-491.38652766,0.00024859,2]
[370352761,1751976655564,-490.0,0.00024859,2]
[370352762,1751976655573,-500.0,0.00024859,2]
[370352763,1751976655582,-460.0,0.00024859,2]
[370352764,1751976655592,-556.74,0.00024859,2]
[370352765,1751976655601,-460.0,0.00024859,2]
[370352766,1751976655610,-460.0,0.00024859,2]
[370352767,1751976655619,-460.0,0.00024859,2]
[370352768,1751976655628,-460.0,0.00024859,2]
[370352769,1751976655637,-491.65065938,0.00024859,2]
[370352770,1751976655647,-460.0,0.00024859,2]
[370352771,1751976655656,-460.0,0.00024859,2]
[370352772,1751976655665,-460.0,0.00024859,2]
[370352773,1751976655674,-460.0,0.00024859,2]
[370352774,1751976655683,-490.0,0.00024859,2]
[370352775,1751976655693,-460.0,0.00024859,2]
[370352776,1751976655702,-460.0,0.00024859,2]
[370352777,1751976655711,-597.60751331,0.00024859,2]
[370352778,1751976655720,-499.04856219,0.00024859,2]
[370352779,1751976655729,-461.32898321,0.00024859,2]
[370352780,1751976655739,-460.76230778,0.00024859,2]
[370352781,1751976655748,-460.0,0.00024859,2]
[370352782,1751976655758,-460.0,0.00024859,2]
[370352783,1751976655767,-460.0,0.00024859,2]
[370352784,1751976655776,-500.0,0.00024859,2]
[370352785,1751976655786,-500.0,0.00024859,2]
[370352786,1751976655795,-493.93010283,0.00024859,2]
[370352787,1751976655805,-460.0,0.00024859,2]
[370352788,1751976655814,-460.71161072,0.00024859,2]
[370352789,1751976655823,-460.0,0.00024859,2]
[370352790,1751976655833,-460.0,0.00024859,2]
[370352791,1751976655842,-460.0,0.00024859,2]
[370352792,1751976655852,-460.65680374,0.00024859,2]
[370352793,1751976655862,-460.68339662,0.00024859,2]
[370352794,1751976655872,-460.0,0.00024859,2]
[370352795,1751976655881,-460.82046697,0.00024859,2]
[370352796,1751976655890,-460.0,0.00024859,2]
[370352797,1751976655900,-492.7147215,0.00024859,2]
[370352798,1751976655909,-460.0,0.00024859,2]
[370352799,1751976655919,-460.0,0.00024859,2]
[370352800,1751976655928,-460.0,0.00024859,2]
[370352801,1751976655938,-460.0,0.00024859,2]
[370352802,1751976655947,-460.0,0.00024859,2]
[370352803,1751976655956,-221.9807819,0.00024859,2]
[370352804,1751976655965,-460.38266905,0.00024859,2]
[370352805,1751976655974,-460.0,0.00024859,2]
[370352806,1751976655984,-460.0,0.00024859,2]
[370352807,1751976655993,-460.0,0.00024859,2]
[370352808,1751976656002,-460.0,0.00024859,2]
[370352809,1751976656012,-734.31,0.00024859,2]
[370352810,1751976656021,-460.0,0.00024859,2]
[370352811,1751976656031,-460.0,0.00024859,2]
[370352812,1751976656040,-460.0,0.00024859,2]
[370352813,1751976656049,-560.17,0.00024859,2]
[370352814,1751976656059,-634.52,0.00024859,2]
[370352815,1751976656069,-460.0,0.00024859,2]
[370352816,1751976656079,-578.19,0.00024859,2]
[370352817,1751976656088,-460.0,0.00024859,2]
[370352818,1751976656098,-579.21,0.00024859,2]
[370352819,1751976656107,-632.23,0.00024859,2]
[370352820,1751976656117,-460.0,0.00024859,2]
[370352821,1751976656128,-703.74,0.00024859,2]
[370352822,1751976656138,-1519.99,0.00024859,2]
[370352823,1751976656147,-1278.67,0.00024859,2]
[370352824,1751976656157,-863.07,0.00024859,2]
[370352825,1751976656166,-1242.73,0.00024859,2]
[370352826,1751976656175,-500.0,0.00024859,2]
[370352827,1751976656185,-1336.2,0.00024859,2]
[370352828,1751976656195,-1347.9,0.00024859,2]
[370352829,1751976656204,-542.24,0.00024859,2]
[370352830,1751976656214,-460.0,0.00024859,2]
[370352831,1751976656223,-460.0,0.00024859,2]
[370352832,1751976656233,-500.0,0.00024859,2]
[370352833,1751976656243,-496.88,0.00024859,2]
[370352834,1751976656256,-1467.76,0.00024859,2]
[370352835,1751976656265,-460.0,0.00024859,2]
[370352836,1751976656275,-1183.51,0.00024859,2]
[370352837,1751976656286,-841.4,0.00024859,2]
[370352838,1751976656296,-460.0,0.00024859,2]
[370352839,1751976656306,-460.0,0.00024859,2]
[370352840,1751976656315,-460.0,0.00024859,2]
[370352841,1751976656326,-665.46,0.00024859,2]
[370352842,1751976656335,-1017.6,0.00024859,2]
[370352843,1751976656345,-540.71,0.00024859,2]
[370352844,1751976656355,-500.0,0.00024859,2]
[370352845,1751976656364,-460.0,0.00024859,2]
[370352846,1751976656373,-717.49,0.00024859,2]
[370352847,1751976656383,-640.21,0.00024859,2]
[370352848,1751976656392,-460.0,0.00024859,2]
[370352849,1751976656402,-498.66,0.00024859,2]
[370352850,1751976656411,-1333.75,0.00024859,2]
[370352851,1751976656420,-500.0,0.00024859,2]
[370352852,1751976656429,-500.0,0.00024859,2]
[370352853,1751976656439,-232.24345479,0.00024859,2]
[370352854,1751976656448,-232.24345479,0.0002486,2]
[370352855,1751976656457,-460.0,0.00024864,2]
[370352856,1751976656467,-460.0,0.00024864,2]
[370352857,1751976656476,-460.0,0.00024864,2]
[370352858,1751976656485,-460.0,0.00024864,2]
[370352859,1751976656495,-460.0,0.00024864,2]
[370352860,1751976656504,-460.0,0.00024864,2]
[370352861,1751976656514,-460.0,0.00024864,2]
[370352862,1751976656523,-460.0,0.00024864,2]
[370352863,1751976656533,-460.0,0.00024864,2]
[370352864,1751976656544,-460.0,0.00024864,2]
[370352865,1751976656553,-460.0,0.00024864,2]
[370352866,1751976656563,-460.0,0.00024864,2]
[370352867,1751976656572,-1150.33,0.00024864,2]
[370352868,1751976656582,-2139.29,0.00024864,2]
[370352869,1751976656591,-4364.15,0.00024864,2]
[370352870,1751976656600,-460.0,0.00024864,2]
[370352871,1751976656610,-732.29,0.00024864,2]
[370352872,1751976656619,-835.19,0.00024864,2]
[370352873,1751976656629,-3458.67,0.00024864,2]
[370352874,1751976656638,-3637.12,0.00024864,2]
[370352875,1751976656647,-1000.0,0.00024864,2]
[370352876,1751976656656,-460.0,0.00024864,2]
[370352877,1751976656665,-690.08,0.00024864,2]
[370352878,1751976656675,-697.56,0.00024864,2]
[370352879,1751976656684,-5457.74,0.00024864,2]
[370352880,1751976656693,-738.85,0.00024864,2]
[370352881,1751976656702,-642.78,0.00024864,2]
[370352882,1751976656712,-460.0,0.00024864,2]
[370352883,1751976656723,-4632.354815,0.00024865,2]
[370352884,1751976656732,-4083.5712979,0.00024865,2]
[370352885,1751976656742,-14501.3715357,0.00024865,2]
[370352886,1751976656751,-1362.4102807,0.00024865,2]
[370352887,1751976656761,-3059.6812779,0.00024865,2]
[370352888,1751976656770,-500.0,0.00024867,2]
[370352889,1751976656780,-500.0,0.00024867,2]
[370352890,1751976656791,-150.0,0.00024867,2]
[370352891,1751976656802,-150.0,0.00024867,2]
[370352892,1751976656812,-500.0,0.00024867,2]
[370352893,1751976656821,-500.0,0.00024867,2]
[370352894,1751976656831,-500.0,0.00024867,2]
[370352895,1751976656840,-500.0,0.00024867,2]
[370352896,1751976656849,-500.0,0.00024867,2]
[370352897,1751976656937,-286.83440096,0.00024869,10]
[370352898,1751976656948,-300.0,0.00024869,10]
[370352899,1751976656957,-270.114,0.00024869,2]
[370352900,1751976656968,-460.0,0.00024869,2]
[370352901,1751976656976,-460.0,0.00024869,2]
[370352902,1751976656986,-460.0,0.00024869,2]
[370352903,1751976656995,-460.0,0.00024869,2]
[370352904,1751976657004,-460.0,0.00024869,2]
[370352905,1751976657013,-460.0,0.00024869,2]
[370352906,1751976657022,-555.83,0.00024869,2]
[370352907,1751976657032,-500.0,0.00024869,2]
[370352908,1751976657041,-500.0,0.00024869,2]
[370352909,1751976657052,-500.0,0.00024869,2]
[370352910,1751976657061,-500.0,0.00024869,2]
[370352911,1751976657071,-500.0,0.00024869,2]
[370352912,1751976657080,-500.0,0.00024869,2]
[370352913,1751976657089,-500.0,0.00024869,2]
[370352914,1751976657098,-461.20428227,0.00024869,2]
[370352915,1751976657109,-556.74,0.00024869,2]
[370352916,1751976657119,-556.74,0.00024869,2]
[370352917,1751976657129,-556.74,0.00024869,2]
[370352918,1751976657138,-556.74,0.00024869,2]
[370352919,1751976657148,-556.74,0.00024869,2]
[370352920,1751976657157,-556.74,0.00024869,2]
[370352921,1751976657166,-556.74,0.00024869,2]
[370352922,1751976657176,-556.74,0.00024869,2]
[370352923,1751976657185,-556.74,0.00024869,2]
[370352924,1751976657195,-556.74,0.00024869,2]
[370352925,1751976657204,-556.74,0.00024869,2]
[370352926,1751976657214,-556.74,0.00024869,2]
[370352927,1751976657224,-556.74,0.00024869,2]
[370352928,1751976657234,-556.74,0.00024869,2]
[370352929,1751976657246,-556.74,0.00024869,2]
[370352930,1751976657257,-556.74,0.00024869,2]
[370352931,1751976657267,-556.74,0.00024869,2]
[370352932,1751976657276,-556.74,0.00024869,2]
[370352933,1751976657285,-556.74,0.00024869,2]
[370352934,1751976657295,-556.74,0.00024869,2]
[370352935,1751976657305,-556.74,0.00024869,2]
[370352936,1751976657314,-556.97350768,0.00024869,2]
[370352937,1751976657323,-500.0,0.00024869,2]
[370352938,1751976657332,-504.0991204,0.00024869,2]
[370352939,1751976657342,-19701.19128168,0.00024869,2]
[370352940,1751976657351,-500.0,0.00024869,2]
[370352941,1751976657361,-500.0,0.00024869,2]
[370352942,1751976657370,-500.0,0.00024869,2]
[370352943,1751976657380,-500.0,0.00024869,2]
[370352944,1751976657389,-500.0,0.00024869,2]
[370352945,1751976657399,-500.0,0.00024869,2]
[370352946,1751976657408,-500.0,0.00024869,2]
[370352947,1751976657418,-500.0,0.00024869,2]
[370352948,1751976657427,-500.0,0.00024869,2]
[370352949,1751976657436,-500.0,0.00024869,2]
[370352950,1751976657445,-525.11,0.00024869,2]
[370352951,1751976657455,-500.0,0.00024869,2]
[370352952,1751976657464,-500.0,0.00024869,2]
[370352953,1751976657473,-368.00956895,0.00024869,2]
[370352954,1751976657487,-1017.6,0.00024869,2]
[370352955,1751976657497,-1017.6,0.00024869,2]
[370352956,1751976657506,-1017.6,0.00024869,2]
[370352957,1751976657516,-1017.6,0.00024869,2]
[370352958,1751976657527,-1017.6,0.00024869,2]
[370352959,1751976657536,-1017.6,0.00024869,2]
[370352960,1751976657546,-1017.6,0.00024869,2]
[370352961,1751976657555,-1017.6,0.00024869,2]
[370352962,1751976657565,-1017.6,0.00024869,2]
[370352963,1751976657574,-1017.6,0.00024869,2]
[370352964,1751976657584,-1017.6,0.00024869,2]
[370352965,1751976657595,-1017.6,0.00024869,2]
[370352966,1751976657606,-1017.6,0.00024869,2]
[370352967,1751976657617,-1017.6,0.00024869,2]
[370352968,1751976657629,-1017.6,0.00024869,2]
[370352969,1751976657639,-1017.6,0.00024869,2]
[370352970,1751976657649,-1017.6,0.00024869,2]
[370352971,1751976657660,-1017.6,0.00024869,2]
[370352972,1751976657670,-1017.6,0.00024869,2]
[370352973,1751976657680,-1017.6,0.00024869,2]
[370352974,1751976657689,-1017.6,0.00024869,2]
[370352975,1751976657698,-1017.6,0.00024869,2]
[370352976,1751976657707,-500.0,0.00024869,2]
[370352977,1751976657717,-1017.69934397,0.00024869,2]
[370352978,1751976657727,-500.0,0.00024869,2]
[370352979,1751976657736,-500.0,0.00024869,2]
[370352980,1751976657745,-500.0,0.00024869,2]
[370352981,1751976657754,-500.0,0.00024869,2]
[370352982,1751976657763,-500.0,0.00024869,2]
[370352983,1751976657773,-500.0,0.00024869,2]
[370352984,1751976657782,-371.91228137,0.00024869,2]
[370352985,1751976657791,-500.0,0.00024869,2]
[370352986,1751976657800,-500.0,0.00024869,2]
[370352987,1751976657809,-500.0,0.00024869,2]
[370352988,1751976657819,-500.0,0.00024869,2]
[370352989,1751976657828,-500.0,0.00024869,2]
[370352990,1751976657837,-500.0,0.00024869,2]
[370352991,1751976657847,-500.0,0.00024869,2]
[370352992,1751976657856,-500.0,0.00024869,2]
[370352993,1751976657866,-227.54701653,0.00024869,2]
[370352994,1751976657876,-500.0,0.00024869,2]
[370352995,1751976657885,-500.0,0.00024869,2]
[370352996,1751976657894,-500.0,0.00024869,2]
[370352997,1751976657903,-500.0,0.00024869,2]
[370352998,1751976657912,-500.0,0.00024869,2]
[370352999,1751976657921,-500.0,0.00024869,2]
[370353000,1751976657931,-500.0,0.00024869,2]
[370353001,1751976657940,-500.0,0.00024869,2]
[370353002,1751976657949,-500.0,0.00024869,2]
[370353003,1751976657959,-500.0,0.00024869,2]
[370353004,1751976657968,-500.0,0.00024869,2]
[370353005,1751976657977,-500.0,0.00024869,2]
[370353006,1751976657986,-500.0,0.00024869,2]
[370353007,1751976657995,-623.41440836,0.00024869,2]
[370353008,1751976658005,-611.83,0.00024869,2]
[370353009,1751976658014,-500.0,0.00024869,2]
[370353010,1751976658023,-500.0,0.00024869,2]
[370353011,1751976658032,-500.0,0.00024869,2]
[370353012,1751976658041,-500.0,0.00024869,2]
[370353013,1751976658050,-513.34517266,0.00024869,2]
[370353014,1751976658059,-500.0,0.00024869,2]
[370353015,1751976658069,-152.88742755,0.00024869,2]
[370353016,1751976658078,-2634175.15539294,0.0002487,7]
[370353017,1751976658844,-457.62875921,0.00024681,2]
[370353018,1751976658853,-1183.14624079,0.0002487,7]
[370353019,1751976659878,-460.0,0.00024661,2]
[370353020,1751976659889,-460.0,0.00024762,2]
[370353021,1751976659899,-460.0,0.00024763,2]
[370353022,1751976659909,-73.50098755,0.0002487,7]
[370353023,1751976659932,-515.21,0.0002487,7]
[370353024,1751976659944,-5815.60309588,0.0002487,7]
[370353025,1751976659955,-5973.73520621,0.0002487,7]
[370353026,1751976659972,-51018.04384653,0.0002487,7]
[370353027,1751976659984,-5515.80767381,0.0002487,7]
[370353028,1751976661697,-457.62875921,0.00024693,2]
[370353029,1751976661706,-460.0,0.00024763,2]
[370353030,1751976661716,-463.34234691,0.00024849,2]
[370353031,1751976661725,-460.0,0.00024849,2]
[370353032,1751976661734,-173075.74841891,0.0002487,7]
[370353033,1751976661779,-460.0,0.00024864,2]
[370353034,1751976661788,-13431.65200874,0.0002487,7]
[370353037,1751976921039,152.72,0.00013699,2]
[370353038,1751976984715,397.04,0.00030137,120]
[370353039,1751977004245,460.0,0.00030137,120]
[370353040,1751977016373,460.0,0.00030137,120]
[370353041,1751977035332,460.0,0.00030137,120]
[370353042,1751977052915,460.0,0.00030137,120]
[370353043,1751977067888,460.0,0.00030137,120]
[370353045,1751977074342,254.77,0.00026677,120]
[370353046,1751977074568,254.77,0.00029641,120]
[370353047,1751977080673,460.0,0.00030137,120]
[370353048,1751977091890,460.0,0.00030137,120]
[370353058,1751977179570,500.0,0.00030137,120]
[370353059,1751977181239,500.0,0.00030137,120]
[370353060,1751977182462,500.0,0.00030137,120]
[370353074,1751977194037,500.0,0.00030137,120]
[370353076,1751977246202,500.0,0.00030137,120]
[370353077,1751977251869,500.0,0.00030137,120]
[370353078,1751977278505,500.0,0.00030137,120]
[370353079,1751977279907,500.0,0.00030137,120]
[370353080,1751977295160,500.0,0.00030137,120]
[370353081,1751977295442,500.0,0.00030137,120]
[370353082,1751977295910,500.0,0.00030137,120]
[370353083,1751977296821,500.0,0.00030137,120]
[370353084,1751977297602,500.0,0.00030137,120]
[370353085,1751977310174,400.0,0.00030137,120]
[370353089,1751977474434,850.0,0.00030137,120]
[370353090,1751977490625,4999.9847904,0.00030137,120]
[370353091,1751977576192,1515.281644,0.0003,120]
[370353095,1751977661059,23597.11268442,0.00018,2]
[370353115,1751977831825,-374.4,0.0001799,3]
[370353116,1751977831834,-535.08835587,0.0001799,2]
[370353117,1751977831940,-64.64164413,0.0001799,2]
[370353118,1751977831950,-250.0,0.00017995,2]
[370353119,1751977831959,-1200.0,0.00017999,2]
[370353120,1751977831969,-179.97537202,0.00017999,2]
[370353121,1751977831978,-6036.47418386,0.00018,2]
[370353122,1751977832047,-951.8092473,0.00018,2]
[370353123,1751977832058,-1873.15482694,0.00018,2]
[370353124,1751977832069,-951.51948432,0.00018,2]
[370353125,1751977832080,-1003.41973025,0.00018,2]
[370353126,1751977832242,-1586.9435435,0.00018,2]
[370353131,1751977832329,-52960.15572351,0.00018,2]
[370353140,1751977837816,-174.86,0.0001799,2]
[370353141,1751977837826,-199.91,0.0001799,2]
[370353142,1751977837835,-112.0520033,0.00018,2]
[370353143,1751977837847,-780.77773902,0.00018,2]
[370353145,1751977837891,-198537.43404056,0.00018,2]
[370353146,1751977837900,-250.0,0.00018858,2]
[370353147,1751977837910,-2966.00893554,0.000194,2]
[370353148,1751977837919,-1680.0,0.00019735,2]
[370353149,1751977837929,-250.0,0.00019789,2]
[370353150,1751977837938,-1785.76879647,0.000209,4]
[370353151,1751977837947,-157.44421474,0.000209,2]
[370353152,1751977837957,-29801.44248946,0.00021,3]
[370353153,1751977837966,-837.09214054,0.00021,3]
[370353154,1751977837975,-210.34477682,0.00021,3]
[370353155,1751977837984,-1785.76879643,0.00021107,4]
[370353156,1751977837994,-1785.76879643,0.00021314,5]
[370353157,1751977838004,-1785.76879643,0.00021521,5]
[370353158,1751977838013,-425.0,0.00021639,2]
[370353159,1751977838027,-1785.76879643,0.00021728,5]
[370353160,1751977838037,-532.67237,0.000218,2]
[370353161,1751977838047,-382.0,0.000218,2]
[370353162,1751977838056,-1785.76879643,0.00021934,6]
[370353163,1751977838065,-150.0,0.00022,2]
[370353164,1751977838075,-1785.76879643,0.00022141,6]
[370353165,1751977838085,-1785.76879643,0.00022348,7]
[370353166,1751977838095,-382.0,0.0002236,2]
[370353167,1751977838104,-150.0,0.00022364,2]
[370353168,1751977838114,-150.0,0.00022364,2]
[370353169,1751977838123,-150.0,0.00022364,2]
[370353170,1751977838132,-500.0,0.00022443,2]
[370353171,1751977838142,-230.0,0.0002247,2]
[370353172,1751977838151,-1785.76879643,0.00022555,7]
[370353173,1751977838160,-810.06,0.00022667,2]
[370353175,1751977838169,-161.25,0.00022726,2]
[370353177,1751977838178,-1785.76879643,0.00022762,7]
[370353179,1751977838188,-505.0,0.00022777,2]
[370353181,1751977838198,-512.0,0.00022777,2]
[370353183,1751977838207,-513.0,0.00022777,2]
[370353185,1751977838216,-502.0,0.00022777,2]
[370353187,1751977838225,-3975.72,0.00022783,2]
[370353189,1751977838234,-157.44421473,0.00022835,2]
[370353191,1751977838243,-382.0,0.0002291,2]
[370353193,1751977838252,-23900.0,0.0002292,2]
[370353195,1751977838261,-1785.76879643,0.00022969,8]
[370353197,1751977838270,-666.0,0.00022999,2]
[370353199,1751977838279,-179.4,0.0002302,2]
[370353200,1751977838288,-200.0,0.0002303,2]
[370353202,1751977838297,-1000.0,0.00023132,2]
[370353204,1751977838306,-1785.76879643,0.00023176,8]
[370353206,1751977838316,-1785.76879643,0.00023383,9]
[370353208,1751977838325,-382.0,0.0002346,2]
[370353210,1751977838334,-200.0,0.0002347,7]
[370353212,1751977838343,-158.47,0.00023485,2]
[370353214,1751977838352,-158.47,0.00023501,2]
[370353216,1751977838361,-158.47,0.00023517,2]
[370353218,1751977838371,-158.47,0.00023532,2]
[370353220,1751977838380,-158.47,0.00023548,2]
[370353222,1751977838389,-158.47,0.00023564,2]
[370353224,1751977838398,-158.47,0.00023579,2]
[370353226,1751977838408,-1785.76879643,0.0002359,9]
[370353228,1751977838417,-158.47,0.00023595,2]
[370353230,1751977838426,-158.47,0.00023611,2]
[370353232,1751977838435,-158.47,0.00023626,2]
[370353234,1751977838444,-158.47,0.00023642,2]
[370353236,1751977838455,-158.47,0.00023657,2]
[370353238,1751977838465,-158.47,0.00023673,2]
[370353240,1751977838474,-158.47,0.00023689,2]
[370353242,1751977838484,-158.47,0.00023704,2]
[370353244,1751977838493,-179.31,0.00023705,2]
[370353246,1751977838502,-447.16,0.00023709,7]
[370353248,1751977838512,-250.0,0.0002371,2]
[370353250,1751977838522,-772.3,0.00023711,2]
[370353252,1751977838531,-254.77,0.00023713,2]
[370353254,1751977838540,-158.47,0.0002372,2]
[370353256,1751977838549,-1173.27,0.00023747,2]
[370353258,1751977838559,-366.0,0.00023748,2]
[370353260,1751977838568,-329.37846631,0.00023796,2]
[370353262,1751977838577,-510.19134512,0.00023796,2]
[370353264,1751977838586,-263.39865768,0.00023796,2]
[370353266,1751977838595,-500.0,0.00023796,2]
[370353268,1751977838605,-500.0,0.00023796,2]
[370353270,1751977838614,-500.0,0.00023796,2]
[370353272,1751977838624,-500.0,0.00023796,2]
[370353274,1751977838633,-500.0,0.00023796,2]
[370353276,1751977838642,-500.0,0.00023796,2]
[370353278,1751977838651,-500.0,0.00023796,2]
[370353279,1751977838661,-177.52944481,0.00023796,2]
[370353282,1751977838670,-1785.76879643,0.00023797,9]
[370353283,1751977838679,-5000.0,0.00023797,2]
[370353285,1751977838688,-168.23,0.00023836,2]
[370353287,1751977838698,-179.4,0.00023883,2]
[370353289,1751977838708,-623.96279197,0.00024,2]
[370353291,1751977838718,-5000.00917172,0.00024,5]
[370353294,1751977838728,-1785.76879643,0.00024003,10]
[370353295,1751977838738,-382.0,0.0002402,2]
[370353298,1751977838747,-200.0,0.000241,8]
[370353299,1751977838757,-207.4,0.00024122,2]
[370353302,1751977838767,-161.25,0.00024146,2]
[370353303,1751977838777,-304.0,0.0002419,2]
[370353306,1751977838787,-500.0,0.000242,8]
[370353308,1751977838797,-1785.76879643,0.0002421,10]
[370353309,1751977838807,-800.0,0.000243,8]
[370353311,1751977838815,-701.42929266,0.00024317,2]
[370353313,1751977838826,-701.4292926,0.00024367,2]
[370353315,1751977838835,-281.142016,0.00024372,4]
[370353317,1751977838844,-1100.0,0.000244,8]
[370353319,1751977838854,-1785.76879643,0.00024417,11]
[370353321,1751977838863,-701.4292926,0.00024418,2]
[370353323,1751977838872,-701.4292926,0.00024468,2]
[370353325,1751977838881,-862.57606904,0.0002449,2]
[370353327,1751977838890,-2000.0,0.000245,2]
[370353329,1751977838899,-1400.0,0.000245,8]
[370353331,1751977838908,-701.4292926,0.00024518,2]
[370353333,1751977838918,-8224.5893,0.00024557,2]
[370353335,1751977838927,-820.2654,0.00024557,2]
[370353337,1751977838936,-1000.0,0.00024557,2]
[370353339,1751977838945,-302.1373,0.00024561,2]
[370353341,1751977838955,-1000.0,0.00024561,2]